Cogmind - Beta 15 @@@ ROGUE MODE // 2025.07.28 @ 15:04:02 Player: shapeshifter Result: Destroyed by B-86 Titan with Railgun Performance ------------- Evolutions (7) 3500 Regions Visited (10) 2000 Robots Destroyed (45) 225 Value Destroyed (2277) 2277 Prototype IDs (14) 280 Alien Tech Used (0) 0 Bonus (1300) 1300 TOTAL SCORE: 9582 Bonus ------- Entered DSFs 500 Registered with UFD 300 Met Optimus in HQ 500 Cogmind --------- Core Integrity 0/1300 Matter 290/300 Energy 99/100 System Corruption 17% Temperature Warning (359) Movement Core (100) Ox1 Location -3/Research Parts ------- > --- POWER (2) -------- (None) > --- PROPULSION (8) --- (None) > --- UTILITY (8) ------ Spectral Analyzer Improved Melee Analysis Suite Improved Melee Analysis Suite > --- WEAPON (3) ------- Companion Sword > --- INVENTORY (5) ---- Compact Wheel Advanced Heat Sink Heavy Gatling Laser Quantum Rifle Peak State ------------ > --- POWER ------------ Light Particle Reactor Micro Antimatter Reactor > --- PROPULSION ------- Flexi-carbon Leg Improved Thunder Leg Enhanced Biometal Leg Xenon Bombardment Thruster Xenon Bombardment Thruster Xenon Bombardment Thruster Xenon Bombardment Thruster Xenon Bombardment Thruster > --- UTILITY ---------- Medium Storage Unit Spectral Analyzer Improved Melee Analysis Suite > --- WEAPON ----------- Quantum Rifle Tri-rail Accelerator > --- INVENTORY -------- Heavy Disruptor Cannon Heavy Disruptor Cannon Companion Sword [Rating: 97] Favorites ----------- Power Light Ion Engine Engine Light Ion Engine Power Core Micro Fission Core Reactor Micro Antimatter Reactor Propulsion Flexi-carbon Leg Treads Light Treads Leg Flexi-carbon Leg Wheel Armored Huge Wheel Hover Unit Antigrav System Flight Unit Xenon Bombardment Thruster Utility Improved Melee Analysis Suite Device Seismic Detector Storage Small Storage Unit Processor Improved Melee Analysis Suite Hackware Hacking Suite Protection Improved Core Shielding Weapon Companion Sword Energy Gun Small Laser Energy Cannon Advanced Plasma Cannon Ballistic Gun Assault Rifle Ballistic Cannon Tri-rail Accelerator Impact Weapon Heavy Flail Slashing Weapon Companion Sword Build | -11 -10 -10 -8 -6 -6 -5 -4 -4 -4 -3 ------- Run | Yrd Mat Sub Scr Fac DSF Fac Fac Upp Upp Res Slots Evolved 14 | . . . . 8 . 2 2 . . 2 Power 1 | . . . . 1 . . . . . . Propulsion 6 | . . . . 3 . 2 1 . . . Utility 6 | . . . . 4 . . 1 . . 1 Weapon 1 | . . . . . . . . . . 1 Parts Attached 100 | 7 . 3 6 6 11 25 5 3 . 34 Power 14 | 1 . 1 1 1 1 3 . 1 . 5 Engine 8 | 1 . 1 1 1 1 1 . 1 . 1 Core 2 | . . . . . . 2 . . . . Reactor 4 | . . . . . . . . . . 4 Propulsion 42 | 2 . 2 1 . 5 15 . 1 . 16 Treads 3 | 2 . . . . . 1 . . . . Leg 19 | . . . . . 5 11 . . . 3 Wheel 3 | . . 2 1 . . . . . . . Hover 10 | . . . . . . 2 . . . 8 Flight 7 | . . . . . . 1 . 1 . 5 Utility 29 | 2 . . . 5 3 5 4 . . 10 Device 7 | 1 . . . . . 1 3 . . 2 Storage 5 | 1 . . . 1 . 2 . . . 1 Processor 7 | . . . . 1 . . . . . 6 Hackware 1 | . . . . 1 . . . . . . Protection 9 | . . . . 2 3 2 1 . . 1 Artifact . | . . . . . . . . . . . Weapon 15 | 2 . . 4 . 2 2 1 1 . 3 Energy Gun 7 | 1 . . 2 . . 1 . . . 3 Energy Cannon 2 | . . . . . . 1 . 1 . . Ballistic Gun 3 | 1 . . . . 2 . . . . . Ballistic Cannon 1 | . . . . . . . 1 . . . Launcher . | . . . . . . . . . . . Special Weapon . | . . . . . . . . . . . Impact Weapon 1 | . . . 1 . . . . . . . Slashing Weapon 1 | . . . 1 . . . . . . . Piercing Weapon . | . . . . . . . . . . . Special Melee Weapon . | . . . . . . . . . . . Unidentified Prototypes 8 | . . . 1 . . 1 2 . . 4 Parts Lost 63 | . . . . . 5 19 3 8 . 28 Power 9 | . . . . . 1 1 . 2 . 5 Propulsion 36 | . . . . . 1 13 2 3 . 17 Utility 14 | . . . . . 2 3 1 2 . 6 Weapon 4 | . . . . . 1 2 . 1 . . Highest Loss Streak 10 | . . . . . 5 10 2 4 . 9 To Critical Strikes . | . . . . . . . . . . . Average Backups 6 | 3 6 6 6 5 8 7 8 3 4 5 Power . | . 1 1 . . . . . . 1 . Propulsion 1 | 1 2 2 1 . . . . . . 2 Utility 2 | . 1 1 3 3 5 5 2 . 1 . Weapon 1 | . 2 1 1 1 1 2 5 1 2 1 Tool/Special . | . . . . . . . . . . . Unused Backups 19 | . . 1 6 . . 5 2 1 . 4 Power 1 | . . . 1 . . . . . . . Propulsion 2 | . . . 1 . . . . . . 1 Utility 9 | . . . 2 . . 5 . 1 . 1 Weapon 7 | . . 1 2 . . . 2 . . 2 Tool/Special . | . . . . . . . . . . . Average Slot Usage (%) 74 | . 100 100 90 58 61 83 88 33 21 43 Engine 7 | . 14 14 14 6 3 5 . . . . Core 1 | . . . . . . 1 10 1 . . Treads 2 | . 28 10 . . . . 4 2 . . Leg 7 | . . . . . 12 29 11 . . 3 Wheel 7 | . . 17 19 6 1 . . . . . Hover 2 | . . . . . . 2 10 1 . 4 Flight 1 | . . . . . . . 4 1 5 5 Device 7 | . 14 14 14 6 1 1 5 8 5 2 Storage 8 | . 14 14 14 6 6 7 9 . . 2 Processor 4 | . . . . 5 6 5 5 5 5 12 Protection 4 | . . . . 6 11 12 13 3 . . Energy Gun 7 | . 14 14 14 6 6 1 . . . 1 Ballistic Gun 4 | . 14 14 9 . 3 2 . . . . Slashing Weapon 3 | . . . 4 6 . 2 5 5 5 3 Peak Build Rating 97 | 7 7 8 25 39 65 88 94 58 20 97 Average Rating 38 | 5 7 7 15 35 45 66 88 32 20 56 On Entrance 30 | . 7 7 8 25 36 65 88 58 20 20 Naked Turns . | . . . . . . . . . . . Heaviest Build 80 | 12 12 12 18 62 74 80 59 31 4 53 Greatest Support 143 | 40 40 40 28 28 100 143 63 34 4 78 Greatest Overweight (x) 23 | . . . . 2 23 1 2 5 . 1 Average Overweight (x) . | . . . . . 1 . . . . . Largest Inventory Capacity 20 | 8 8 8 8 20 20 20 10 5 5 10 Average Capacity 10 | 7 8 8 8 10 20 18 9 5 5 8 Most Carried 14 | 6 6 8 8 8 12 14 10 5 5 10 Average Carried 7 | 3 6 6 7 6 8 8 9 4 5 5 Final Capacity 20 | 8 8 8 8 20 20 10 5 5 5 5 Final Carried 10 | 6 6 7 8 7 10 10 4 5 5 4 Class Distribution -------------------- 72% | Mutant 22% | Scavenger-Mutant Dominant Class ---------------- Mutant | -10/Materials Mutant | -10/Subcaves Mutant | -8/Scraptown Mutant | -6/Factory Scavenger-Mutant | -6/DSF Scavenger-Mutant | -5/Factory Scavenger-Mutant | -4/Factory Mutant | -4/Upper Caves Mutant | -4/Upper Caves Mutant | -3/Research Resources | -11 -10 -10 -8 -6 -6 -5 -4 -4 -4 -3 ----------- Run | Yrd Mat Sub Scr Fac DSF Fac Fac Upp Upp Res Matter Collected 1647 | 265 21 38 50 . 187 525 72 60 . 429 Remotely . | . . . . . . . . . . . Salvage Created 2356 | 42 . . . . 171 852 147 353 . 791 Parts 105 | 5 . . . . 11 33 5 10 . 41 Haulers Intercepted 1 | . . . . . . 1 . . . . Recyclers Shooed 3 | 1 . . . . . 2 . . . . Parts Field Recycled . | . . . . . . . . . . . Retrieved Matter . | . . . . . . . . . . . Parts Self-Destructed 13 | . . 4 . . . . . 9 . . Prevented . | . . . . . . . . . . . Kills | -11 -10 -10 -8 -6 -6 -5 -4 -4 -4 -3 ------- Run | Yrd Mat Sub Scr Fac DSF Fac Fac Upp Upp Res Combat Hostiles Destroyed 39 | . . . . . 3 13 4 6 . 13 Melee 20 | . . . . . . 4 1 5 . 10 Guns 10 | . . . . . 3 5 . . . 2 Cannons 7 | . . . . . . 3 3 . . 1 Classes Destroyed 12 | 1 . . . . 2 5 1 2 . 1 Worker 2 | . . . . . . 1 . . . 1 Tunneler 2 | 2 . . . . . . . . . . Hauler 1 | . . . . . . 1 . . . . Watcher 1 | . . . . . . . . . . 1 Swarmer 12 | . . . . . . . 3 5 . 4 Grunt 11 | . . . . . . 7 . . . 4 Sentry 3 | . . . . . . 2 1 . . . Specialist 2 | . . . . . 2 . . . . . Hunter 3 | . . . . . 1 2 . . . . Programmer 7 | . . . . . . 2 . . . 5 Behemoth 1 | . . . . . . . . 1 . . Packrat 1 | . . . . . . . . 1 . . Best Kill Streak 5 | 2 . . . . 2 5 2 5 . 4 Combat Bots Only 5 | . . . . . 2 5 2 5 . 4 Max Kills in Single Turn 2 | 1 . . . . 1 1 1 1 . 2 Gunslinging . | . . . . . . . . . . . Exploded . | . . . . . . . . . . . Melee 2 | . . . . . . 1 1 1 . 2 Uniques/NPCs Destroyed . | . . . . . . . . . . . Combat | -11 -10 -10 -8 -6 -6 -5 -4 -4 -4 -3 -------- Run | Yrd Mat Sub Scr Fac DSF Fac Fac Upp Upp Res Hostile Shots Fired 680 | . . . . . 157 169 57 67 . 230 Missed 193 | . . . . . 55 42 19 11 . 66 Hits 487 | . . . . . 102 127 38 56 . 164 Melee 2 | . . . . . 2 . . . . . Projectile 485 | . . . . . 100 127 38 56 . 164 Critical Strikes 18 | . . . . . 2 2 . . . 14 Damage Taken 9828 | . 36 . . . 1828 2649 661 958 . 3696 Core 1951 | . . . . . 102 189 57 284 . 1319 Absorbed by Shields . | . . . . . . . . . . . Redirected to Shielding 277 | . . . . . 20 140 56 61 . . Core Remaining (%) 87 | 100 . . 100 . 88 81 . . 70 . Volleys Fired 141 | 7 1 . . . 28 63 26 9 . 7 Largest 2 | 2 2 . . . 2 2 1 1 . 2 Hottest 154 | 60 60 . . . 93 99 98 98 . 154 Shots Fired 177 | 14 2 . . . 40 72 26 9 . 14 Gun 106 | 14 2 . . . 40 43 . . . 7 Cannon 71 | . . . . . . 29 26 9 . 7 Launcher . | . . . . . . . . . . . Special . | . . . . . . . . . . . Kinetic 73 | 7 1 . . . 25 33 . . . 7 Thermal 104 | 7 1 . . . 15 39 26 9 . 7 Explosive . | . . . . . . . . . . . Electromagnetic . | . . . . . . . . . . . Robot Hit Streak 8 | 3 4 . . . 8 7 5 5 . 5 Robot Miss Streak 6 | 6 1 . . . 2 2 5 1 . 3 Penetration Max . | . . . . . . . . . . . Secondary Targets . | . . . . . . . . . . . Shots Hit Robots 206 | 6 1 . . . 31 76 17 15 . 60 Core Hits 74 | 2 . . . . 10 26 5 6 . 25 Critical Kills 2 | . . . . . . 1 . 1 . . Critical Parts Destroyed . | . . . . . . . . . . . Critical Strikes 5 | . . . . . 1 3 . 1 . . Burn 1 | . . . . . 1 . . . . . Meltdown 2 | . . . . . . 1 . 1 . . Melee Attacks 101 | . . . . . . 23 2 15 . 61 Impact 1 | . . . . . . . . 1 . . Slashing 100 | . . . . . . 23 2 14 . 61 Piercing . | . . . . . . . . . . . Sneak Attacks 3 | . . . . . . 1 . . . 2 Combat Hostiles . | . . . . . . . . . . . Follow-up Attacks 3 | . . . . . . . . . . 3 Damage Inflicted 7075 | 71 10 . . . 544 2669 574 561 . 2646 Guns 1382 | 71 10 . . . 544 611 . . . 146 Cannons 1898 | . . . . . . 882 490 205 . 321 Explosions 258 | . . . . . . 258 . . . . Melee 3537 | . . . . . . 918 84 356 . 2179 Ramming . | . . . . . . . . . . . Kinetic 1188 | 38 . . . . 360 469 . . . 321 Thermal 2350 | 33 10 . . . 184 1282 490 205 . 146 Explosive . | . . . . . . . . . . . Electromagnetic . | . . . . . . . . . . . Impact . | . . . . . . . . . . . Slashing 3537 | . . . . . . 918 84 356 . 2179 Piercing . | . . . . . . . . . . . Highest Corruption 17 | . . . . . . 3 . . . 17 Average Corruption 5 | . . . . . . 2 . . . 7 Corruption Purged . | . . . . . . . . . . . Corruption Blocked . | . . . . . . . . . . . Effects 17 | . . . . . . 3 . . . 14 Message Errors 3 | . . . . . . 1 . . . 2 Matter Fused 4 | . . . . . . 1 . . . 3 Heat Flow Errors 1 | . . . . . . . . . . 1 Energy Discharges 3 | . . . . . . 1 . . . 2 Parts Rejected 3 | . . . . . . . . . . 3 Parts Fused 1 | . . . . . . . . . . 1 Data Loss (major) 1 | . . . . . . . . . . 1 Misdirections 1 | . . . . . . . . . . 1 Overload Shots . | . . . . . . . . . . . Overflow Damage 319 | . . . . . . 38 17 96 . 168 Projectiles 66 | . . . . . . . 17 49 . . Explosions . | . . . . . . . . . . . Melee 253 | . . . . . . 38 . 47 . 168 Knockbacks 6 | . . . . . . . . . . 6 Impact . | . . . . . . . . . . . Kinetic 6 | . . . . . . . . . . 6 Secondary . | . . . . . . . . . . . Self-Inflicted Damage 134 | . . . . . . 134 . . . . Shots 2 | . . . . . . 2 . . . . Rammed . | . . . . . . . . . . . Targets Rammed . | . . . . . . . . . . . Kicked . | . . . . . . . . . . . Crushed . | . . . . . . . . . . . Highest Temperature 411 | . . . . . 11 270 411 48 . 276 Average Temperature 98 | . . . . . 2 89 187 17 . 74 Received Heat Transfer 1632 | . . . . . 72 666 45 36 . 813 Siege Activations . | . . . . . . . . . . . Martial Activations . | . . . . . . . . . . . Shielding Activations . | . . . . . . . . . . . Robots Disrupted . | . . . . . . . . . . . Combat Hostiles . | . . . . . . . . . . . Robots Corrupted . | . . . . . . . . . . . Combat Hostiles . | . . . . . . . . . . . Parts Fried . | . . . . . . . . . . . Impact Corruptions . | . . . . . . . . . . . Robots Melted 2 | . . . . . . 1 . 1 . . Combat Hostiles 2 | . . . . . . 1 . 1 . . Parts Melted 5 | . . . . . . 4 . 1 . . Heat Transferred 3512 | 75 25 . . . 481 1696 750 300 . 185 Parts Sabotaged . | . . . . . . . . . . . Parts Stolen . | . . . . . . . . . . . Parts Stripped . | . . . . . . . . . . . Power Chain Reactions . | . . . . . . . . . . . Alert | -11 -10 -10 -8 -6 -6 -5 -4 -4 -4 -3 ------- Run | Yrd Mat Sub Scr Fac DSF Fac Fac Upp Upp Res Maximum Alert Level . | . . . . . . . . . . . Low Security (%) 100 | 100 100 . . 100 100 100 100 . . 100 Level 1 . | . . . . . . . . . . . Level 2 . | . . . . . . . . . . . Level 3 . | . . . . . . . . . . . Level 4 . | . . . . . . . . . . . Level 5 . | . . . . . . . . . . . High Security . | . . . . . . . . . . . Max Security . | . . . . . . . . . . . Peak Influence 163 | 5 . . . 4 65 163 65 . . 113 Initial 55 | . . . . . . 33 55 . . 3 Average 46 | . . . . . 23 104 26 . . 33 Influence Increases 1481 | 10 . . . 4 85 554 136 140 . 552 Destroy 0b10 Robot/C 780 | . . . . . 60 260 80 120 . 260 Destroy 0b10 Robot/NC 30 | 10 . . . . . 10 . . . 10 Destroy Leader 174 | . . . . . 10 62 20 20 . 62 Successful Hack 43 | . . . . 4 . . 5 . . 34 Disable Machine 60 | . . . . . . 60 . . . . Destroy Structure 124 | . . . . . . 102 16 . . 6 Lose Combat Pursuer 270 | . . . . . 15 60 15 . . 180 Influence Decreases 1372 | 10 . . . 4 20 505 234 136 14 449 Entered New Map 105 | . . . . . . 32 59 7 4 3 Time Decay 765 | 10 . . . 4 . 293 145 99 10 204 Lost Part 502 | . . . . . 20 180 30 30 . 242 Squads Dispatched 13 | . 1 . . . 2 4 . . . 6 Investigation 3 | . . . . . . 2 . . . 1 Extermination 3 | . . . . . . 1 . . . 2 Reinforcement 4 | . 1 . . . 2 1 . . . . Assault . | . . . . . . . . . . . Garrison 3 | . . . . . . . . . . 3 Intercept . | . . . . . . . . . . . Searches Triggered . | . . . . . . . . . . . Construction Impeded . | . . . . . . . . . . . Haulers Reinforced . | . . . . . . . . . . . Active Scanning Responses . | . . . . . . . . . . . Cargo Convoy Interrupts . | . . . . . . . . . . . Stealth | -11 -10 -10 -8 -6 -6 -5 -4 -4 -4 -3 --------- Run | Yrd Mat Sub Scr Fac DSF Fac Fac Upp Upp Res Distress Signals 5 | . 2 . . . . 1 . . . 2 Communications Jammed 1 | . . . . . . . . . . 1 Distress Signals . | . . . . . . . . . . . Times Spotted 92 | . 6 2 . . 10 23 5 6 1 39 Peak Tracking Total 15 | . 4 2 . . 4 6 4 5 1 15 Tactical Retreats 10 | . . . . . 1 3 1 . . 5 Traps | -11 -10 -10 -8 -6 -6 -5 -4 -4 -4 -3 ------- Run | Yrd Mat Sub Scr Fac DSF Fac Fac Upp Upp Res Traps Triggered 3 | . 1 . . . . 1 . . . 1 Indirectly . | . . . . . . . . . . . Trap Hack Attempts . | . . . . . . . . . . . Triggered . | . . . . . . . . . . . Disarmed . | . . . . . . . . . . . Reprogrammed . | . . . . . . . . . . . Reused . | . . . . . . . . . . . Traps Extracted . | . . . . . . . . . . . Installed . | . . . . . . . . . . . Triggered . | . . . . . . . . . . . Machines | -11 -10 -10 -8 -6 -6 -5 -4 -4 -4 -3 ---------- Run | Yrd Mat Sub Scr Fac DSF Fac Fac Upp Upp Res Machines Disabled 4 | . . . . . . 4 . . . . Max in Single Turn 3 | . . . . . . 3 . . . . Garrison Access 1 | . . . . . . . . . . 1 Machines Repaired . | . . . . . . . . . . . Machines Dismantled . | . . . . . . . . . . . Machines Sabotaged . | . . . . . . . . . . . Overloaded Fab Kills . | . . . . . . . . . . . Hacking | -11 -10 -10 -8 -6 -6 -5 -4 -4 -4 -3 --------- Run | Yrd Mat Sub Scr Fac DSF Fac Fac Upp Upp Res Machines Accessed 17 | . 1 1 5 1 . 2 2 . . 5 Terminals 5 | . 1 . . 1 . 1 1 . . 1 Fabricators . | . . . . . . . . . . . Repair Stations 3 | . . . . . . . . . . 3 Recycling Units 1 | . . . . . . 1 . . . . Scanalyzers . | . . . . . . . . . . . Garrison Access 2 | . . . . . . . 1 . . 1 Total Hacks 42 | . 3 3 16 2 . 3 5 . . 10 Successful 28 | . 1 3 16 1 . 2 1 . . 4 Failed 14 | . 2 . . 1 . 1 4 . . 6 Catastrophic 6 | . 2 . . . . 1 . . . 3 Database Lockouts . | . . . . . . . . . . . Manual 8 | . 3 . . . . 5 . . . . Terminals 11 | . 3 . . 2 . 1 3 . . 2 Fabricators . | . . . . . . . . . . . Repair Stations 6 | . . . . . . . . . . 6 Recycling Units 2 | . . . . . . 2 . . . . Scanalyzers . | . . . . . . . . . . . Garrison Access 4 | . . . . . . . 2 . . 2 Terminal Hacks 23 | . . 3 16 1 . . 1 . . 2 Record 19 | . . 3 14 . . . . . . 2 Open Door 1 | . . . 1 . . . . . . . Open DSF 2 | . . . . 1 . . 1 . . . Proto ID Catalog 1 | . . . 1 . . . . . . . Fabricator Hacks . | . . . . . . . . . . . Repair Station Hacks 1 | . . . . . . . . . . 1 Refit 1 | . . . . . . . . . . 1 Recycling Unit Hacks 1 | . . . . . . 1 . . . . Report Inventory 1 | . . . . . . 1 . . . . Scanalyzer . | . . . . . . . . . . . Garrison Access Hacks 1 | . . . . . . . . . . 1 Seal Access 1 | . . . . . . . . . . 1 Unauthorized Hacks 2 | . 1 . . . . 1 . . . . Terminals 1 | . 1 . . . . . . . . . Botnet 1 | . 1 . . . . . . . . . Fabricators . | . . . . . . . . . . . Repair Stations . | . . . . . . . . . . . Recycling Units 1 | . . . . . . 1 . . . . Fedlink 1 | . . . . . . 1 . . . . Scanalyzers . | . . . . . . . . . . . Garrison Access . | . . . . . . . . . . . Data Cores Recovered . | . . . . . . . . . . . Used . | . . . . . . . . . . . Hacking Detections 10 | . 1 . . 1 . 1 2 . . 5 Full Trace Events 1 | . 1 . . . . . . . . . Feedback Events . | . . . . . . . . . . . Feedback Blocked . | . . . . . . . . . . . Robot Schematics Acquired . | . . . . . . . . . . . Robots Built . | . . . . . . . . . . . Authchips . | . . . . . . . . . . . Time . | . . . . . . . . . . . Total Robot Build Rating . | . . . . . . . . . . . Part Schematics Acquired . | . . . . . . . . . . . Parts Built . | . . . . . . . . . . . Authchips . | . . . . . . . . . . . Time . | . . . . . . . . . . . Total Part Build Rating . | . . . . . . . . . . . Parts Repaired . | . . . . . . . . . . . Time . | . . . . . . . . . . . Parts Recycled . | . . . . . . . . . . . Recycled Matter . | . . . . . . . . . . . Retrieved Matter . | . . . . . . . . . . . Retrieved Components . | . . . . . . . . . . . Parts Scanalyzed . | . . . . . . . . . . . Part Schematics Acquired . | . . . . . . . . . . . Parts Damaged . | . . . . . . . . . . . Bothacking | -11 -10 -10 -8 -6 -6 -5 -4 -4 -4 -3 ------------ Run | Yrd Mat Sub Scr Fac DSF Fac Fac Upp Upp Res Used RIF Installer . | . . . . . . . . . . . Robots Hacked . | . . . . . . . . . . . Non-combat . | . . . . . . . . . . . Combat . | . . . . . . . . . . . Robot Hacks Applied . | . . . . . . . . . . . Relay Couplers Released . | . . . . . . . . . . . Fabnet Peak Effective % . | . . . . . . . . . . . Robots Rewired . | . . . . . . . . . . . Allies Hacked . | . . . . . . . . . . . Hacks Repelled . | . . . . . . . . . . . Allies | -11 -10 -10 -8 -6 -6 -5 -4 -4 -4 -3 -------- Run | Yrd Mat Sub Scr Fac DSF Fac Fac Upp Upp Res Total Allies . | . . . . . . . . . . . Largest Group . | . . . . . . . . . . . Highest-Rated Group . | . . . . . . . . . . . Highest-Rated Ally . | . . . . . . . . . . . Total Orders . | . . . . . . . . . . . Ally Attacks . | . . . . . . . . . . . Total Damage . | . . . . . . . . . . . Kills . | . . . . . . . . . . . Allies Corrupted . | . . . . . . . . . . . Allies Melted . | . . . . . . . . . . . Intel | -11 -10 -10 -8 -6 -6 -5 -4 -4 -4 -3 ------- Run | Yrd Mat Sub Scr Fac DSF Fac Fac Upp Upp Res Active Infowar (turns) 2679 | 40 141 265 1391 123 31 . 20 38 . 630 Optics 630 | . . . . . . . . . . 630 Seismic 1991 | 40 141 265 1391 123 31 . . . . . Jamming 93 | . . . . . . . . . . 93 ECM 58 | . . . . . . . 20 38 . . Robot Analysis Total . | . . . . . . . . . . . Derelict Logs Recovered 6 | . . . 2 . . . . 3 1 . Drone Launches . | . . . . . . . . . . . Drone Recoveries . | . . . . . . . . . . . Exploration | -11 -10 -10 -8 -6 -6 -5 -4 -4 -4 -3 ------------- Run | Yrd Mat Sub Scr Fac DSF Fac Fac Upp Upp Res Turns Passed 4413 | 172 141 265 1391 123 209 699 359 331 21 702 Spaces Moved 3722 | 94 87 205 1394 106 61 349 219 412 59 736 Core 28 | 17 . . . . 3 . . 3 . 5 Treads 289 | 77 87 54 . . . . 1 70 . . Legs 715 | . . . . . 38 349 183 . . 145 Wheels 1671 | . . 151 1394 106 20 . . . . . Hover 340 | . . . . . . . 35 92 . 213 Flight 679 | . . . . . . . . 247 59 373 Fastest Speed 28 | 50 160 90 90 100 120 120 56 35 35 28 Average Speed 92 | 140 160 108 96 104 183 124 126 62 35 52 Slowest Speed 1200 | 160 160 160 100 130 1200 190 320 300 35 138 Overloaded Moves . | . . . . . . . . . . . Propulsion Burnouts . | . . . . . . . . . . . Robots Hopped 3 | . . . . . . . . . . 3 Potential Cave-ins . | . . . . . . . . . . . Cave-ins Triggered . | . . . . . . . . . . . Exploration Rate (%) 26 | 5 21 24 90 3 40 10 5 60 10 23 Regions Visited 10 Branch Regions 4 Pre-discovered Areas 2 | . . 1 . . . . . 1 . . Known Exits Taken 1 | . . . . 1 . . . . . . Unknown Exits Taken 8 | 1 1 1 1 . . 1 1 1 1 . Scrap Searched 7 | . . . 5 . . . . 2 . . Spaces Dug . | . . . . . . . . . . . Terrain Destroyed 65 | . . . . . . 53 8 3 . 1 Melee . | . . . . . . . . . . . Projectile 14 | . . . . . . 2 8 3 . 1 AOE 51 | . . . . . . 51 . . . . Terrain Rammed . | . . . . . . . . . . . Walls Destroyed . | . . . . . . . . . . . Machines Disabled . | . . . . . . . . . . . Actions | -11 -10 -10 -8 -6 -6 -5 -4 -4 -4 -3 --------- Run | Yrd Mat Sub Scr Fac DSF Fac Fac Upp Upp Res Total 4411 | 120 87 247 1454 119 123 514 277 457 58 955 Wait 157 | . . 35 18 . 7 19 8 10 . 60 Move 3706 | 93 86 204 1393 105 60 348 218 411 58 730 Hop 3 | . . . . . . . . . . 3 Pick Up 109 | 13 . 3 18 5 14 26 2 2 . 26 Fast Attach 22 | . . . . . . 4 . 2 . 16 Attach 91 | 7 . . 5 6 11 21 7 3 . 31 Detach 20 | . . . 1 . 2 . 3 3 . 11 Swap 7 | . . 3 1 . . 2 . 1 . . Drop 58 | . . 2 18 3 1 8 11 2 . 13 Fire 141 | 7 1 . . . 28 63 26 9 . 7 Melee 97 | . . . . . . 23 2 14 . 58 Ram . | . . . . . . . . . . . Kick . | . . . . . . . . . . . Crush . | . . . . . . . . . . . Escape Stasis . | . . . . . . . . . . . Rewire . | . . . . . . . . . . . Trap . | . . . . . . . . . . . Miscellaneous . | . . . . . . . . . . . Route ------- -11/Scrapyard -10/Materials (discovered 2 exits: [*Mat] / *Sub) -10/Subcaves (discovered 2 exits: [*Mat] / *Scr) -8/Scraptown (discovered 2 exits: *Fac x2) -6/Factory -6/DSF -5/Factory (discovered 2 exits: *Fac / Upp) -4/Factory -4/Upper Caves -4/Upper Caves -3/Research (discovered 1 exit: Tes) History --------- Turn | Location | Event 5 | -11/Scrapyard | Discovered new exit (range 15) 173 | -11/Scrapyard | Entered Materials 174 | -10/Materials | Met a group of wandering Federalists 261 | -10/Materials | Discovered new exit (range 15) 301 | -10/Materials | Discovered new exit (range 8) 307 | -10/Materials | Build established: Mutant 314 | -10/Materials | Entered Subcaves 315 | -10/Subcaves | Continued accompanying wandering Federalists (4) 419 | -10/Subcaves | Shifting Twisted Machinery released Sub. Beam Cannon 493 | -10/Subcaves | Visited Clippyterm 496 | -10/Subcaves | Learned location of Section 7 (-2) 524 | -10/Subcaves | A swath of the cavern ceiling suddenly collapsed 526 | -10/Subcaves | Discovered new exit (range 16) 573 | -10/Subcaves | Wandering Federalist uncovered a shortcut to Scraptown 579 | -10/Subcaves | Entered Scraptown 678 | -8/Scraptown | Visited Fellowship of the Rings 687 | -8/Scraptown | Visited Shadow of the Wyrm 700 | -8/Scraptown | Visited Cyclists 707 | -8/Scraptown | Visited TADAMA 746 | -8/Scraptown | Visited Symbiants 755 | -8/Scraptown | Visited CR-KLE's Repair Center 769 | -8/Scraptown | Visited UFD Registry 769 | -8/Scraptown | Registered with UFD as "Rustgrid" 844 | -8/Scraptown | Entered Cyclist Reading Room 905 | -8/Scraptown | Visited Assassins FH 1284 | -8/Scraptown | Scanned Subdweller tech in exchange for log data 1287 | -8/Scraptown | Learned location of 1 exit from Lower Caves 1301 | -8/Scraptown | Discovered new exit (range 7) 1339 | -8/Scraptown | Guru changed UFD alias to "Smoothgrid" 1430 | -8/Scraptown | Visited DA-N13 Charitable Foundation 1455 | -8/Scraptown | Found DCF Scrap (30 items) 1506 | -8/Scraptown | Visited Sword Containment 1544 | -8/Scraptown | Visited Curators Association 1665 | -8/Scraptown | Visited Scrapoid Research Area 1688 | -8/Scraptown | Visited Supply Room 1741 | -8/Scraptown | Visited Junk Repository 1769 | -8/Scraptown | Visited Scrapoid Pod Storage 1796 | -8/Scraptown | Visited Science Guys 1874 | -8/Scraptown | Received an X-ray algorithm 1888 | -8/Scraptown | Met Optimus 1888 | -8/Scraptown | Accepted into 0bPrime 1947 | -8/Scraptown | Discovered new exit (range 5) 1970 | -8/Scraptown | Entered Factory 1970 | -6/Factory | Evolved 8 slots: Power x1, Propulsion x3, Utility x4 2056 | -6/Factory | Identified exit to DSF 2093 | -6/Factory | Entered DSF 2127 | -6/DSF | Additional patrols routed to DSF 2209 | -6/DSF | Lost 5 parts (1p1n2u1w) 2250 | -6/DSF | Discovered new exit (range 15) 2302 | -6/DSF | Entered Factory 2302 | -5/Factory | Evolved 2 slots: Propulsion x2 2303 | -5/Factory | Identified exit to Upper Caves 2413 | -5/Factory | Found Launcher Loader 2477 | -5/Factory | Ran an X-ray algorithm 2477 | -5/Factory | Ran an X-ray algorithm 2477 | -5/Factory | Loaded intel: 8 recycling unit locations 2480 | -5/Factory | Lost 5 parts (2n2u1w) 2697 | -5/Factory | Lost 10 parts (1p7n1u1w) 2710 | -5/Factory | Ran an X-ray algorithm 2934 | -5/Factory | Discovered new exit (range 13) 3001 | -5/Factory | Entered another Factory area 3001 | -4/Factory | Evolved 2 slots: Propulsion x1, Utility x1 3146 | -4/Factory | Build established: Scavenger-Mutant 3281 | -4/Factory | Discovered new exit (range 8) 3360 | -4/Factory | Entered Upper Caves 3373 | -4/Upper Caves | Spotted B-86 Titan 3422 | -4/Upper Caves | Destroyed B-86 Titan 3444 | -4/Upper Caves | Lost 4 parts (2p2n) 3614 | -4/Upper Caves | Lost 4 parts (1n2u1w) 3642 | -4/Upper Caves | Learned location of Quarantine (-2) 3652 | -4/Upper Caves | Learned Research security intel 3678 | -4/Upper Caves | Discovered new exit (range 15) 3691 | -4/Upper Caves | Entered another Upper Caves area 3698 | -4/Upper Caves | Discovered new exit (range 3) 3709 | -4/Upper Caves | Learned 8 Research zone layouts 3712 | -4/Upper Caves | Entered Research 3712 | -3/Research | Evolved 2 slots: Utility x1, Weapon x1 3713 | -3/Research | Identified exit to Testing 3753 | -3/Research | Build established: Mutant 3784 | -3/Research | Found Prototype Processor 3784 | -3/Research | Identified Spectral Analyzer 3956 | -3/Research | Garrison activated, responded to threat 3968 | -3/Research | Lost 5 parts (1n4u) 4191 | -3/Research | Lost 9 parts (1p7n1u) 4310 | -3/Research | Core integrity fell below 50% 4334 | -3/Research | Lost 7 parts (2p5n) 4334 | -3/Research | System corruption reached 10% 4388 | -3/Research | Core integrity fell below 20% 4405 | -3/Research | Spotted B-86 Titan 4414 | -3/Research | Destroyed by B-86 Titan with Railgun Last Messages --------------- 04386_ P-80 Master destroyed. 04387_ Enh. Biometal Leg destroyed. 04388_ Acquired Imp. Antigrav System. 04390_ Dropped Med. Storage Unit. 04391_ Imp. Melee Analysis Suite destroyed. 04391_ R-10 Processor collects Med. Storage Unit. 04396_ System corrupted: Companion Sword rejected. Companion Sword: "I swear if you leave me here I'll eventually find my true companion and we'll beat you to death. Just kidding. Please." 04396_ Acquired Companion Sword. 04400_ Critical hit (Burn: +37). 04409_ Imp. Antigrav System destroyed. 04410_ U-05 Engineer builds a Wall. 04413_ Q=H>CGRBHPNMWKOG,Y40VC=LL3S9BE2M F/BAXV 04414_ Critical hit (Meltdown: +350). 04414_ Penetrated by Slug. Map ----- +----------------------------------------------------+ | ????????????????????????????????????????# #?? | | ????????????????????????????????????????###+####?? | | ?????????????????????????????????######???# #????# | | ?????????????????????????????????# #???# #????# | | ?????????????????????????????????# ##### ###### | | ?????????????????????????????????# + | | ?????????????????????????????????# ##### ###### | | ???????????????????????########### #####/###### | | ???????????????????????# = [ # ## # | | ???????????????????????# ! # ## # | | ???????????????????????# """ # ## """ # | | ???????????????????????# """" # ## ""R"* # | | ???????????????????????#[ """" # ## ="[* # | | ???????????????????????? """ # ## |*[ # | | ????????????????????????? # ## *=%! # | | ????????????????????????? # ## !%! # | | ?????????????????????????#####+###g ######/##### | | ????????????????????????? # | | ????????????????????????? # g | | ??????????????????????????# g | | ??????????????????????????# | | ??????????????????????????# k#############/##### | | ??????????????????????????# #* #???????????? | | ????????????###########+### # #???????????? | | ????????????# k u ; #???????????? | | ????????????+ k @ % # #???????????? | | ????????????# # #???????????? | | ????????????# # #???????????? | | ????????????## !!! ##### #???????????? | | ?????????????# wu! #???# #???????????? | | ???????????# BB !! #???# #???????????? | | ???????????# BB #???# #???????????? | | ???????????### #???# #???????????? | | ???????????? #???# #???????????? | | ???????????######### u #???#######???????????? | | ???????????????????##+######?????????????????????? | | ???????????????????? ???????????????????????????? | | ???????????????????? ???????????????????????????? | | ??????????????????? ????????????????????????????? | | ??????????????????? "????????????????????????????? | | ?????????????????? ?????????????????????????????? | | ?????????????????? ?????????????????????????????? | | ????????????????? ?????????????????????????????? | | ????????????????? ??????????????????????????????? | | ?????????????????#???????????????????????????????? | | ?????????????????????????????????????????????????? | | ?????????????????????????????????????????????????? | | ?????????????????????????????????????????????????? | | ?????????????????????????????????????????????????? | | ?????????????????????????????????????????????????? | +----------------------------------------------------+ Best States ------------- Heat Dissipation 62 Energy Generation 37 Energy Capacity 365 Matter Stores 507 Matter Capacity 550 Sight Range 24 Terrain Scan Density 210 ECM Strength 1 Jamming Range 16 Additional Mass Support 12 Base Temperature (-) 200 Armor Coverage 600 Core Shielding 30 Weapon Shielding 66 Evasion (%) 70 Melee Accuracy 18 Recoil Reduction 2 Offensive Hacking 10 Item Schematics ----------------- None Robot Schematics ------------------ None Fabricated ------------ Nothing Repaired ---------- Nothing Alien Tech Used ----------------- None Achievements -------------- Ambidextrous Challenges ------------ None Game ------ Seed RecyclingMeleeComputer Manual? 0 Play Time 00:58:58 Cumulative 66.1 hours Start 2025.07.28 @ 14:03:10 End 2025.07.28 @ 15:04:02 Sessions 1 Manual Loads 0 Difficulty Rogue Special Mode None Game No. 144 Rogue 144 Adventurer 0 Explorer 0 Win Type - Total 1 Types 1/0/0/0/0/0/0/0/0/0 Lore% 48 Gallery% 49 Achievement% 36 Wizard Run 0 Options --------- Layout 1 ASCII 0 Keyboard 0 Movement Mouse Keybinds 0 Fullscreen 1 Font 24/Smallcaps Map View 50x40 Zoom Use 0% Tactical HUD 1 Map Filters NONE Filters NONE Steam 1 RUN: 2c20865b-520c-493d-91a7-a0bcca5cc5be